Cogmind - Beta 13 @@@ ROGUE MODE // 2024.05.03 @ 23:41:24 Player: teroshan Result: Destroyed by G-34 Mercenary with Small Laser Performance ------------- Evolutions (1) 500 Regions Visited (2) 400 Robots Destroyed (11) 55 Value Destroyed (271) 271 Prototype IDs (0) 0 Alien Tech Used (0) 0 Bonus (0) 0 TOTAL SCORE: 1226 Bonus ------- None Cogmind --------- Core Integrity 0/400 Matter 288/300 Energy 99/100 System Corruption 0% Temperature Cool (12) Movement Core (100) Ox1 Location -9/Materials Parts ------- > --- POWER (1) -------- (None) > --- PROPULSION (2) --- (None) > --- UTILITY (3) ------ Small Storage Unit Visual Processing Unit Visual Processing Unit > --- WEAPON (3) ------- (None) > --- INVENTORY (8) ---- Aluminum Leg Huge Storage Unit Light Armor Plating Shield Generator Beam Rifle Peak State ------------ > --- POWER ------------ Ion Engine > --- PROPULSION ------- Wheel Compact Wheel > --- UTILITY ---------- Small Storage Unit Visual Processing Unit Visual Processing Unit > --- WEAPON ----------- Medium Laser Medium Laser Medium Laser > --- INVENTORY -------- Aluminum Leg Compact Wheel Huge Storage Unit Light Armor Plating Shield Generator Beam Rifle Light Assault Rifle Heavy Assault Rifle [Rating: 12] Favorites ----------- Power Ion Engine Engine Ion Engine Propulsion Aluminum Leg Leg Aluminum Leg Wheel Compact Wheel Utility Small Storage Unit Storage Small Storage Unit Processor Visual Processing Unit Protection Light Armor Plating Weapon Medium Laser Energy Gun Medium Laser Ballistic Gun Heavy Assault Rifle Build | -11 -10 -9 ------- Run | Yrd Mat Mat Slots Evolved 2 | . . 2 Power . | . . . Propulsion . | . . . Utility 1 | . . 1 Weapon 1 | . . 1 Parts Attached 27 | 10 6 11 Power 2 | 1 1 . Engine 2 | 1 1 . Core . | . . . Reactor . | . . . Propulsion 8 | 5 2 1 Treads . | . . . Leg 2 | 2 . . Wheel 6 | 3 2 1 Hover . | . . . Flight . | . . . Utility 6 | 1 1 4 Device . | . . . Storage 3 | 1 . 2 Processor 2 | . 1 1 Hackware . | . . . Protection 1 | . . 1 Artifact . | . . . Weapon 11 | 3 2 6 Energy Gun 8 | 3 1 4 Energy Cannon . | . . . Ballistic Gun 3 | . 1 2 Ballistic Cannon . | . . . Launcher . | . . . Special Weapon . | . . . Impact Weapon . | . . . Slashing Weapon . | . . . Piercing Weapon . | . . . Special Melee Weapon . | . . . Unidentified Prototypes . | . . . Parts Lost 14 | . 5 9 Power 2 | . 1 1 Propulsion 4 | . 1 3 Utility . | . . . Weapon 8 | . 3 5 Highest Loss Streak 7 | . 5 7 To Critical Strikes . | . . . Average Slot Usage (%) 88 | . 91 84 Engine 11 | . 13 8 Leg 14 | . 25 . Wheel 9 | . 2 18 Storage 12 | . 14 11 Processor 12 | . 8 18 Energy Gun 24 | . 25 23 Ballistic Gun 1 | . . 2 Naked Turns . | . . . Heaviest Build 96 | 13 13 96 Greatest Support 26 | 26 26 26 Greatest Overweight (x) 4 | . . 4 Average Overweight (x) . | . . . Largest Inventory Capacity 25 | 8 8 25 Average Capacity 7 | 6 8 8 Most Carried 8 | 5 5 8 Average Carried 4 | 3 4 5 Final Capacity 8 | 8 8 8 Final Carried 5 | 4 2 5 Class Distribution -------------------- 77% | Mutant 19% | Skirmisher 3% | Tank Dominant Class ---------------- Mutant | -10/Materials Skirmisher | -9/Materials Resources | -11 -10 -9 ----------- Run | Yrd Mat Mat Matter Collected 370 | 218 102 50 Remotely . | . . . Salvage Created 336 | . 170 166 Parts 19 | . 13 6 Haulers Intercepted . | . . . Recyclers Shooed . | . . . Parts Field Recycled . | . . . Retrieved Matter . | . . . Parts Self-Destructed . | . . . Prevented . | . . . Kills | -11 -10 -9 ------- Run | Yrd Mat Mat Combat Hostiles Destroyed 10 | . 5 5 Guns 10 | . 5 5 Classes Destroyed 4 | . 3 1 Watcher 1 | . 1 . Swarmer 4 | . 2 2 Grunt 5 | . 3 2 Sentry 1 | . . 1 Best Kill Streak 4 | . 3 4 Combat Bots Only 4 | . 3 4 Max Kills in Single Turn 1 | . 1 1 Gunslinging . | . . . Exploded . | . . . Melee . | . . . Uniques/NPCs Destroyed . | . . . Combat | -11 -10 -9 -------- Run | Yrd Mat Mat Hostile Shots Fired 212 | . 95 117 Missed 40 | . 21 19 Damage Taken 1797 | . 746 1051 Core 615 | . 206 409 Absorbed by Shields . | . . . Core Remaining (%) 58 | 100 17 . Volleys Fired 47 | . 34 13 Largest 3 | . 2 3 Hottest 150 | . 90 150 Shots Fired 89 | . 56 33 Gun 89 | . 56 33 Cannon . | . . . Launcher . | . . . Special . | . . . Kinetic 4 | . 2 2 Thermal 85 | . 54 31 Explosive . | . . . Electromagnetic . | . . . Robot Hit Streak 11 | . 11 7 Robot Miss Streak 7 | . 7 2 Penetration Max . | . . . Secondary Targets . | . . . Shots Hit Robots 55 | . 32 23 Core Hits 22 | . 10 12 Critical Kills . | . . . Critical Parts Destroyed . | . . . Critical Strikes 1 | . . 1 Burn 1 | . . 1 Melee Attacks . | . . . Impact . | . . . Slashing . | . . . Piercing . | . . . Sneak Attacks . | . . . Combat Hostiles . | . . . Follow-up Attacks . | . . . Damage Inflicted 704 | . 366 338 Guns 685 | . 366 319 Cannons . | . . . Explosions . | . . . Melee . | . . . Ramming 19 | . . 19 Kinetic 28 | . 7 21 Thermal 657 | . 359 298 Explosive . | . . . Electromagnetic . | . . . Impact . | . . . Slashing . | . . . Piercing . | . . . Highest Corruption . | . . . Average Corruption . | . . . Corruption Purged . | . . . Corruption Blocked . | . . . Overload Shots . | . . . Overflow Damage . | . . . Projectiles . | . . . Explosions . | . . . Melee . | . . . Knockbacks . | . . . Impact . | . . . Kinetic . | . . . Secondary . | . . . Self-Inflicted Damage 7 | . . 7 Shots . | . . . Rammed 7 | . . 7 Targets Rammed 7 | . . 7 Kicked . | . . . Crushed . | . . . Highest Temperature 433 | . 300 433 Average Temperature 151 | . 113 213 Received Heat Transfer 669 | . 258 411 Effects 2 | . 1 1 Energy Bleed 1 | . 1 . Short Circuit 1 | . . 1 Siege Activations . | . . . Robots Corrupted . | . . . Combat Hostiles . | . . . Parts Fried . | . . . Impact Corruptions . | . . . Robots Melted . | . . . Combat Hostiles . | . . . Parts Melted 4 | . 3 1 Heat Transferred 1846 | . 884 962 Parts Sabotaged . | . . . Parts Stolen . | . . . Parts Stripped . | . . . Power Chain Reactions . | . . . Alert | -11 -10 -9 ------- Run | Yrd Mat Mat Peak Influence 233 | . 134 233 Initial 52 | . . 52 Average 62 | . 50 111 Maximum Alert Level 1 | . . 1 Low Security (%) 95 | 100 100 87 Level 1 4 | . . 12 Level 2 . | . . . Level 3 . | . . . Level 4 . | . . . Level 5 . | . . . High Security . | . . . Max Security . | . . . Squads Dispatched 4 | . 1 3 Investigation 2 | . . 2 Extermination . | . . . Reinforcement 2 | . 1 1 Assault . | . . . Garrison . | . . . Intercept . | . . . Searches Triggered . | . . . Construction Impeded . | . . . Haulers Reinforced . | . . . Active Scanning Responses . | . . . Cargo Convoy Interrupts . | . . . Stealth | -11 -10 -9 --------- Run | Yrd Mat Mat Distress Signals 2 | . 1 1 Communications Jammed . | . . . Distress Signals . | . . . Times Spotted 34 | . 18 16 Peak Tracking Total 7 | . 6 7 Tactical Retreats 2 | . . 2 Traps | -11 -10 -9 ------- Run | Yrd Mat Mat Traps Triggered . | . . . Indirectly . | . . . Trap Hack Attempts . | . . . Triggered . | . . . Disarmed . | . . . Reprogrammed . | . . . Reused . | . . . Traps Extracted . | . . . Installed . | . . . Triggered . | . . . Machines | -11 -10 -9 ---------- Run | Yrd Mat Mat Machines Disabled . | . . . Max in Single Turn . | . . . Machines Repaired . | . . . Machines Dismantled . | . . . Machines Sabotaged . | . . . Overloaded Fab Kills . | . . . Hacking | -11 -10 -9 --------- Run | Yrd Mat Mat Machines Accessed 5 | . 3 2 Terminals 5 | . 3 2 Fabricators . | . . . Repair Stations . | . . . Recycling Units . | . . . Scanalyzers . | . . . Garrison Access . | . . . Total Hacks 17 | . 10 7 Successful 8 | . 4 4 Failed 9 | . 6 3 Catastrophic . | . . . Database Lockouts . | . . . Manual . | . . . Terminals 17 | . 10 7 Fabricators . | . . . Repair Stations . | . . . Recycling Units . | . . . Scanalyzers . | . . . Garrison Access . | . . . Terminal Hacks 8 | . 4 4 Record 5 | . 2 3 Dispatch Records 1 | . . 1 Recall Reinforcements 1 | . 1 . Zone Layout 1 | . 1 . Fabricator Hacks . | . . . Repair Station Hacks . | . . . Recycling Unit Hacks . | . . . Scanalyzer . | . . . Garrison Access Hacks . | . . . Unauthorized Hacks . | . . . Terminals . | . . . Fabricators . | . . . Repair Stations . | . . . Recycling Units . | . . . Scanalyzers . | . . . Garrison Access . | . . . Data Cores Recovered . | . . . Used . | . . . Hacking Detections 5 | . 3 2 Full Trace Events 2 | . . 2 Feedback Events . | . . . Feedback Blocked . | . . . Robot Schematics Acquired . | . . . Robots Built . | . . . Authchips . | . . . Time . | . . . Total Robot Build Rating . | . . . Part Schematics Acquired . | . . . Parts Built . | . . . Authchips . | . . . Time . | . . . Total Part Build Rating . | . . . Parts Repaired . | . . . Time . | . . . Parts Recycled . | . . . Recycled Matter . | . . . Retrieved Matter . | . . . Retrieved Components . | . . . Parts Scanalyzed . | . . . Part Schematics Acquired . | . . . Parts Damaged . | . . . Bothacking | -11 -10 -9 ------------ Run | Yrd Mat Mat Used RIF Installer . | . . . Robots Hacked . | . . . Non-combat . | . . . Combat . | . . . Robot Hacks Applied . | . . . Relay Couplers Released . | . . . Fabnet Peak Effective % . | . . . Robots Rewired . | . . . Allies Hacked . | . . . Hacks Repelled . | . . . Allies | -11 -10 -9 -------- Run | Yrd Mat Mat Total Allies . | . . . Largest Group . | . . . Highest-Rated Group . | . . . Highest-Rated Ally . | . . . Total Orders . | . . . Ally Attacks . | . . . Total Damage . | . . . Kills . | . . . Allies Corrupted . | . . . Allies Melted . | . . . Intel | -11 -10 -9 ------- Run | Yrd Mat Mat Robot Analysis Total . | . . . Derelict Logs Recovered . | . . . Drone Launches . | . . . Drone Recoveries . | . . . Exploration | -11 -10 -9 ------------- Run | Yrd Mat Mat Turns Passed 806 | 143 386 277 Spaces Moved 585 | 117 243 225 Core 17 | 8 . 9 Treads . | . . . Legs 278 | 51 227 . Wheels 290 | 58 16 216 Hover . | . . . Flight . | . . . Fastest Speed 50 | 50 90 90 Average Speed 105 | 102 118 93 Slowest Speed 250 | 120 120 250 Overloaded Moves . | . . . Propulsion Burnouts . | . . . Robots Hopped . | . . . Cave-ins Triggered . | . . . Exploration Rate (%) 23 | 5 38 26 Regions Visited 2 Branch Regions . Pre-discovered Areas . | . . . Known Exits Taken . | . . . Unknown Exits Taken 2 | 1 1 . Scrap Searched . | . . . Spaces Dug . | . . . Terrain Destroyed . | . . . Melee . | . . . Projectile . | . . . AOE . | . . . Terrain Rammed . | . . . Walls Destroyed . | . . . Machines Disabled . | . . . Actions | -11 -10 -9 --------- Run | Yrd Mat Mat Total 690 | 141 286 263 Wait 1 | . 1 . Move 583 | 116 242 225 Hop . | . . . Pick Up 16 | 9 2 5 Fast Attach 9 | 4 1 4 Attach 15 | 6 5 4 Detach 6 | 3 1 2 Swap 3 | . . 3 Drop 3 | 3 . . Fire 47 | . 34 13 Melee . | . . . Ram 7 | . . 7 Kick . | . . . Crush . | . . . Escape Stasis . | . . . Rewire . | . . . Trap . | . . . Miscellaneous . | . . . Route ------- -11/Scrapyard -10/Materials -9/Materials History --------- Turn | Location | Event 18 | -11/Scrapyard | Discovered new exit (range 15) 144 | -11/Scrapyard | Entered Materials 320 | -10/Materials | Build established: Mutant 450 | -10/Materials | Discovered new exit (range 12) 495 | -10/Materials | Core integrity fell below 50% 527 | -10/Materials | Core integrity fell below 20% 530 | -10/Materials | Entered another Materials area 530 | -9/Materials | Evolved 2 slots: Utility x1, Weapon x1 547 | -9/Materials | Lost 5 parts (1p1n3w) 747 | -9/Materials | Core integrity fell below 50% 763 | -9/Materials | Core integrity fell below 20% 787 | -9/Materials | Lost 7 parts (1p2n4w) 807 | -9/Materials | Destroyed by G-34 Mercenary with Small Laser Last Messages --------------- 00742_ Overheating: Short circuit. 00742_ Acquired 50 matter. 00743_ Critical hit (Burn: +37). 00744_ Med. Laser destroyed. 00745_ Broken Ion Engine destroyed. 00747_ Med. Laser destroyed. 00753_ Slammed into G-47 Trooper. Ramming works as a last resort when unarmed or blocked, but can have serious negative consequences. 00754_ Slammed into G-47 Trooper. 00756_ Lgt. Assault Rifle destroyed. 00766_ Slammed into K-01 Serf. 00790_ Destabilizing: Core damaged (-16). 00792_ Slammed into S-10 Pest. 00794_ Visual Processing Unit broken. 00794_ Destabilizing: Short circuit. 00797_ T-07 Excavator is excavating. 00797_ Hvy. Assault Rifle destroyed. 00800_ Com. Wheel destroyed. 00801_ T-07 Excavator is excavating. Map ----- +----------------------------------------------------+ | ?????????????????????????????? | | ?????????????????????????????? | | ?????????????????????????????? | | ?????????????????????????????? | | ?????????????????????????????? | | ?????????????????????????????? | | ?????????????????????????????? | | ?????????????????????????????? | | ?????????????????????????????? | | ?????????????????????????????? | | ?????????????????????????????? | | ?????????????????????????????? | | ?????????????????????###?????? | | ????????????????????? ?????? | | ?????????????????????? ????? | | ?????????????????????? ????? | | ?????????????????????? #???? | | ??????????????????????? ???? | | ??????????????????????? ???? | | ??????????????????????? ???? | | ???????????????????????# #???? | | ???????????????????????# #???? | | ?????????????????????### ###?? | | ???????????????????### #?? | | ???????????????????# # T" #?? | | ???????????????????# t "@ #?? | | ???????????????????# # #?? | | ?????????????????????# #?? | | ?????????????????????## rs##?? | | ??????????????????????# o#??? | | ??????????????????????# #??? | | ??????###########?????# #??? | | ??????# ?????# #??? | | ??????# ??????# #??? | | ??????# ??????# gg#??? | | ??????# #####g #??? | | ###???# / t #??? | | #???# ##### g #??? | | #???# % ??????## ##??? | | #?########+###???????# #???? | | #?# # #???????# #???? | | !#?# # #???????# #???? | | ##### / T #???????# #???? | | + # # ?????# #???? | | #### # # #### #???? | | #??######## ### " + #???? | | #?#######?# #?# T # ####???? | | #?# #?# #?# "??# #??????? | | ### T" #?# #?#????# #??????? | | " #?# #??????# #??????? | +----------------------------------------------------+ Best States ------------- Heat Dissipation 28 Energy Generation 10 Energy Capacity 250 Matter Stores 290 Matter Capacity 300 Sight Range 18 Terrain Scan Density 10 Armor Coverage 150 Evasion (%) 55 Item Schematics ----------------- None Robot Schematics ------------------ None Fabricated ------------ Nothing Alien Tech Used ----------------- None Achievements -------------- None Challenges ------------ None Game ------ Seed SkeletonCryofiberRail Manual? 0 Play Time 00:26:36 Cumulative 1.4 hours Start 2024.05.03 @ 23:06:44 End 2024.05.03 @ 23:41:24 Sessions 1 Manual Loads 0 Difficulty Rogue Special Mode None Game No. 8 Rogue 8 Adventurer 0 Explorer 0 Win Type - Total 0 Types 0/0/0/0/0/0/0/0/0 Lore% 1 Gallery% 3 Achievement% 4 Wizard Run 0 Options --------- Layout 0 ASCII 1 Keyboard 1 Movement Vi Keybinds 0 Fullscreen 2 Font 24/Smallcaps Map View 76x50 Zoom Use 0% Tactical HUD 1 Map Filters NONE Filters NONE Steam 1 RUN: 7fe981b1-bb9c-4158-9b6b-b2730170da13